bitfinex-derivatives/quotes_ETHF0:USTF0_20230830
["timestamp","ask_amount","ask_price","bid_price","bid_amount"]
[1693365115651,5.34416889,1717.4,1717.3,11.66278176]
[1693365116550,5.34416889,1717.5,1717.3,11.66278176]
[1693365116746,5.34416889,1717.5,1717.4,8.4498]
[1693365116957,5.34416889,1717.5,1717.4,10.71973648]
[1693365117351,6.57702249,1717.6,1717.4,10.71973648]
[1693365117551,13.448366,1717.6,1717.4,8.4498]
[1693365117746,6.11520536,1717.5,1717.4,5.242]
[1693365121251,6.11520536,1717.5,1717.4,8.4498]
[1693365121448,6.11520536,1717.5,1717.4,5.242]
[1693365123755,12.98654887,1717.5,1717.4,5.242]
[1693365123960,6.87134351,1717.5,1717.4,5.242]
[1693365129960,6.87134351,1717.5,1717.3,11.53211824]
[1693365130165,6.11147096,1717.4,1717.3,11.53211824]
[1693365132969,6.11140367,1717.4,1717.3,11.53211824]
[1693365134165,6.11140367,1717.4,1717.3,7.8286]
[1693365136368,11.35340367,1717.4,1717.1,7.7966]
[1693365136569,12.19216723,1717.4,1717.1,7.7966]
[1693365136874,6.11140367,1717.2,1717.1,7.7966]
[1693365139079,6.11140367,1717.2,1717.1,5.242]
[1693365139278,6.11140367,1717.2,1717.0,5.6879]
[1693365139279,11.35340367,1717.2,1717.0,5.6879]
[1693365139580,5.3461823,1717.1,1717.0,5.6879]
[1693365140382,7.8807,1717.2,1717.0,5.6879]
[1693365140580,5.34552928,1717.1,1717.0,5.6879]
[1693365143778,5.34552928,1717.1,1717.0,2.4801]
[1693365145573,5.34552928,1717.1,1717.0,12.36348176]
[1693365145777,5.34552928,1717.1,1717.0,14.99968176]
[1693365150191,5.80600216,1717.2,1717.0,14.99968176]
[1693365150590,5.80600216,1717.2,1717.1,7.51193648]
[1693365150789,5.80600216,1717.2,1717.1,5.242]
[1693365160407,5.80600216,1717.2,1717.1,6.67558176]
[1693365160702,5.80600216,1717.2,1717.1,1.43358176]
[1693365163797,5.80600216,1717.2,1717.0,15.83603648]
[1693365163996,5.80600216,1717.2,1717.0,17.26961824]
[1693365169106,5.34552928,1717.1,1717.0,17.26961824]
[1693365175217,5.34414698,1717.1,1717.0,17.26961824]
[1693365176013,6.56806943,1717.2,1717.0,17.26961824]
[1693365176014,5.80461986,1717.2,1717.0,17.26961824]
[1693365176218,5.80461986,1717.2,1717.1,5.242]
[1693365176713,0.46047288,1717.2,1717.1,5.242]
[1693365176915,6.10759655,1717.3,1717.1,5.242]
[1693365177822,6.10759655,1717.2,1717.1,5.242]
[1693365178119,6.10759655,1717.3,1717.1,5.242]
[1693365178918,6.10759655,1717.2,1717.1,5.242]
[1693365218950,6.10759655,1717.2,1717.0,13.5661]
[1693365219247,5.34878094,1717.1,1717.0,13.5661]
[1693365221449,5.34878094,1717.1,1717.0,14.99968176]
[1693365228850,9.17942134,1717.2,1717.0,14.99968176]
[1693365228851,5.82120573,1717.2,1717.0,14.99968176]
[1693365229049,5.82120573,1717.2,1717.1,7.51193648]
[1693365236355,0.47242479,1717.2,1717.1,7.51193648]
[1693365236556,5.34878094,1717.3,1717.1,7.51193648]
[1693365236858,5.34878094,1717.3,1717.2,9.88338176]
[1693365237062,5.34878094,1717.3,1717.2,12.51218176]
[1693365237262,5.34878094,1717.3,1717.2,14.92928176]
[1693365243777,5.82781649,1717.4,1717.2,14.92928176]
[1693365244076,5.82781649,1717.4,1717.3,2.26993648]
[1693365249876,0.00873515,1717.4,1717.3,7.51193648]
[1693365250073,0.00873515,1717.4,1717.3,20.15655497]
[1693365253784,8.22133354,1717.7,1717.3,20.15655497]
[1693365253975,8.22133354,1717.7,1717.6,8.4498]
[1693365254280,8.22133354,1717.7,1717.6,9.88338176]
[1693365254484,5.81933354,1717.7,1717.6,9.88338176]
[1693365254674,5.81933354,1717.7,1717.6,12.48238176]
[1693365254871,0.4705526,1717.7,1717.6,12.48238176]
[1693365255068,10.19278094,1717.8,1717.6,12.48238176]
[1693365255268,10.19278094,1717.8,1717.7,5.242]
[1693365255482,7.79378094,1717.8,1717.7,5.242]
[1693365255676,5.34878094,1717.8,1717.7,5.242]
[1693365258779,6.10759655,1717.8,1717.7,5.242]
[1693365259081,9.62011635,1717.9,1717.7,5.242]
[1693365259384,10.08029766,1717.9,1717.7,5.242]
[1693365259884,5.33432731,1717.8,1717.7,5.242]
[1693365264384,5.33432731,1717.8,1717.7,6.67558176]
[1693365265283,5.33432731,1717.8,1717.7,5.242]
[1693365265484,5.33432731,1717.8,1717.7,6.67558176]
[1693365266183,5.33320136,1717.8,1717.7,6.67558176]
[1693365266885,5.33320136,1717.8,1717.7,5.242]
[1693365268594,5.33320136,1717.8,1717.7,6.67558176]
[1693365269195,8.54100136,1717.8,1717.7,6.67558176]
[1693365269494,8.54100136,1717.8,1717.5,5.242]
[1693365271996,13.78300136,1717.8,1717.5,5.242]
[1693365272394,5.33320136,1717.7,1717.5,5.242]
[1693365273799,19.87808863,1717.8,1717.5,5.242]
[1693365274096,13.78300136,1717.8,1717.5,5.242]
[1693365276900,5.33320136,1717.7,1717.5,5.242]
[1693365281405,5.33320136,1717.7,1717.5,7.6344]
[1693365282002,5.33320136,1717.6,1717.5,7.6344]
[1693365284810,8.57088727,1717.7,1717.5,7.6344]
[1693365285711,6.09508727,1717.6,1717.5,7.6344]
[1693365286917,11.33708727,1717.6,1717.3,2.6548]
[1693365287214,5.34321389,1717.4,1717.3,2.6548]
[1693365289712,13.78388727,1717.5,1717.2,5.242]
[1693365289903,5.34297948,1717.3,1717.2,5.242]
[1693365291515,10.58497948,1717.3,1717.1,2.509]
[1693365299023,5.242,1717.3,1717.1,2.509]
[1693365302024,13.02357948,1717.4,1717.1,7.751]
[1693365302429,13.02357948,1717.4,1717.2,2.4351]
[1693365305333,5.34297948,1717.4,1717.3,5.242]
[1693365305529,6.5509613,1717.5,1717.3,5.242]
[1693365305530,5.79885351,1717.5,1717.3,5.242]
[1693365305734,5.79885351,1717.5,1717.4,8.4498]
[1693365306228,5.3373605,1717.6,1717.4,16.09093493]
[1693365306536,5.3373605,1717.6,1717.5,8.94551824]
[1693365306722,5.79906473,1717.7,1717.5,8.94551824]
[1693365306925,5.3373605,1717.7,1717.5,8.94551824]
[1693365308132,5.3373605,1717.6,1717.5,8.94551824]
[1693365308331,5.3373605,1717.6,1717.5,7.51193648]
[1693365308537,5.3373605,1717.6,1717.5,5.242]
[1693365312135,5.3373605,1717.6,1717.4,8.4498]
[1693365316934,5.3373605,1717.6,1717.5,5.242]
[1693365317241,5.3373605,1717.7,1717.5,12.76214591]
[1693365317439,4.7551605,1717.7,1717.6,8.94551824]
[1693365318242,0.47237802,1717.8,1717.6,8.94551824]
[1693365318534,6.09508727,1717.9,1717.7,5.242]
[1693365318741,15.40946045,1718.0,1717.8,12.15331824]
[1693365318940,8.55248727,1718.0,1717.9,5.242]
[1693365319340,15.40946045,1718.0,1717.9,5.242]
[1693365319746,8.55248727,1718.0,1717.9,6.67558176]
[1693365320537,9.02483468,1718.0,1717.9,6.67558176]
[1693365323147,9.02483468,1718.0,1717.9,5.242]
[1693365323348,9.02483468,1718.0,1717.9,6.67558176]
[1693365323648,9.02483468,1718.0,1717.9,5.242]
[1693365324149,9.02483468,1718.0,1717.9,6.67558176]
[1693365325247,2.92974741,1718.0,1717.9,6.67558176]
[1693365326147,1.04742031,1718.0,1717.9,6.67558176]
[1693365329450,6.37907711,1718.0,1717.9,6.67558176]
[1693365329653,1.04742031,1718.0,1717.9,6.67558176]
[1693365330552,1.04742031,1718.0,1717.9,5.242]
[1693365331152,1.04742031,1718.0,1717.9,6.67558176]
[1693365331854,1.04742031,1718.0,1717.9,6.68069234]
[1693365335956,1.04742031,1718.0,1717.9,6.67558176]
[1693365338556,1.04742031,1718.0,1717.9,5.242]
[1693365339051,1.04742031,1718.0,1717.9,6.67558176]
[1693365340257,1.04742031,1718.0,1717.9,5.242]
[1693365340757,1.04742031,1718.0,1717.9,6.67558176]
[1693365342958,1.04742031,1718.0,1717.9,5.242]
[1693365343153,1.04742031,1718.0,1717.9,6.67558176]
[1693365344857,1.04742031,1718.0,1717.9,6.68069357]
[1693365345562,1.04742031,1718.0,1717.9,5.24711181]
[1693365346258,1.04742031,1718.0,1717.9,6.68069357]
[1693365350761,0.47234741,1718.0,1717.9,6.68069357]
[1693365350967,7.8930568,1718.2,1717.9,6.68069357]
[1693365351161,7.8930568,1718.2,1718.1,5.242]
[1693365351461,7.8930568,1718.2,1718.1,6.67558176]
[1693365351956,7.8930568,1718.2,1718.1,6.68048516]
[1693365352156,8.36005572,1718.2,1718.1,6.68048516]
[1693365352762,8.36005572,1718.2,1718.1,0.0049034]
[1693365354355,3.02839892,1718.2,1718.1,0.0049034]
[1693365354559,8.36558272,1718.2,1718.1,0.0049034]
[1693365354756,9.12348619,1718.2,1718.1,0.0049034]
[1693365355263,12.33128619,1718.2,1718.1,0.0049034]
[1693365356364,13.16971485,1718.2,1718.1,0.0049034]
[1693365357861,7.07462758,1718.2,1718.1,0.0049034]
[1693365358862,13.93160076,1718.2,1718.1,0.0049034]
[1693365362657,21.55045985,1718.2,1718.1,0.0049034]
[1693365362862,14.69348667,1718.2,1718.1,0.0049034]
[1693365364884,7.07462758,1718.2,1718.1,0.0049034]
[1693365365166,6.23619892,1718.2,1718.1,0.0049034]
[1693365367068,3.02839892,1718.2,1718.1,0.0049034]
[1693365367271,10.66270381,1718.2,1718.1,0.0049034]
[1693365367567,11.50113247,1718.2,1718.1,0.0049034]
[1693365371470,18.37043451,1718.2,1718.1,0.0049034]
[1693365371670,10.73612962,1718.2,1718.1,0.0049034]
[1693365375171,10.73612962,1718.2,1718.1,1.43848516]
[1693365375368,10.73612962,1718.2,1718.1,0.0049034]
[1693365379573,18.37043451,1718.2,1718.1,0.0049034]
[1693365379768,11.50113247,1718.2,1718.1,0.0049034]
[1693365384174,11.50113247,1718.2,1718.1,1.43848516]
[1693365385976,8.93973247,1718.2,1718.1,1.43848516]
[1693365386176,8.10130381,1718.2,1718.1,0.0049034]
[1693365386578,14.96863603,1718.2,1718.1,0.0049034]
[1693365386779,8.1727598,1718.2,1718.1,0.0049034]
[1693365391186,10.8122598,1718.2,1718.1,0.0049034]
[1693365391877,10.8122598,1718.2,1718.1,5.2469034]
[1693365397593,10.8122598,1718.2,1718.1,6.68048516]
[1693365397791,3.94492758,1718.2,1718.1,6.68048516]
[1693365398099,3.10649892,1718.2,1718.1,6.68048516]
[1693365400196,9.97705635,1718.2,1718.1,6.68048516]
[1693365400396,10.81505453,1718.2,1718.1,6.68048516]
[1693365400695,3.9444971,1718.2,1718.1,6.68048516]
[1693365400889,3.10649892,1718.2,1718.1,6.68048516]
[1693365401995,10.74080381,1718.2,1718.1,6.68048516]
[1693365407504,10.74080381,1718.2,1718.1,5.2469034]
[1693365407805,10.74080381,1718.2,1718.1,6.68048516]
[1693365411502,10.74080381,1718.2,1718.1,5.2469034]
[1693365415706,10.74080381,1718.2,1718.1,6.68048516]
[1693365419807,10.74080381,1718.2,1718.1,5.2469034]
[1693365422106,10.74080381,1718.2,1718.1,6.68048516]
[1693365422505,3.10649892,1718.2,1718.1,6.68048516]
[1693365422710,10.7430833,1718.2,1718.1,6.68048516]
[1693365424311,3.10649892,1718.2,1718.1,6.68048516]
[1693365424712,10.7430833,1718.2,1718.1,6.68048516]
[1693365425919,17.61704042,1718.2,1718.1,6.68048516]
[1693365426215,18.4550386,1718.2,1718.1,6.68048516]
[1693365426714,10.81850701,1718.2,1718.1,6.68048516]
[1693365427114,8.17900701,1718.2,1718.1,6.68048516]
[1693365427315,7.34095604,1718.2,1718.1,6.68048516]
[1693365427917,0.46699892,1718.2,1718.1,6.68048516]
[1693365428214,7.72073841,1718.3,1718.1,6.68048516]
[1693365428616,6.10801067,1718.2,1718.1,6.68048516]
[1693365429516,6.10801067,1718.2,1718.1,5.2469034]
[1693365431320,8.51951067,1718.2,1718.1,5.2469034]
[1693365431819,2.4115,1718.2,1718.1,5.2469034]
[1693365432019,9.28545712,1718.2,1718.1,0.0049034]
[1693365432518,10.12350809,1718.2,1718.1,0.0049034]
[1693365448728,10.12350809,1718.2,1718.1,1.43848516]
[1693365448926,7.71200809,1718.2,1718.1,1.43848516]
[1693365450228,7.71200809,1718.2,1718.1,0.0049034]
[1693365451024,7.71200809,1718.2,1718.1,6.68048516]
[1693365451324,5.34310544,1718.2,1718.1,6.68048516]
[1693365454030,6.10631688,1718.2,1718.1,6.68048516]
[1693365454828,9.21991212,1718.3,1718.1,6.68048516]
[1693365455028,9.21991212,1718.3,1718.2,5.242]
[1693365456027,9.21991212,1718.3,1718.2,5.24693528]
[1693365462033,9.21991212,1718.3,1718.2,0.00493528]
[1693365462228,3.11359524,1718.3,1718.2,0.00493528]
[1693365463239,8.45175796,1718.3,1718.2,0.00493528]
[1693365469046,3.11359524,1718.3,1718.2,0.00493528]
[1693365469546,9.98755236,1718.3,1718.2,0.00493528]
[1693365469746,3.11359524,1718.3,1718.2,0.00493528]
[1693365469946,3.11359524,1718.3,1718.1,11.80838176]
[1693365470248,6.09897517,1718.2,1718.1,11.80838176]
[1693365470642,6.09897517,1718.2,1718.1,9.31328176]
[1693365471044,6.09897517,1718.2,1718.1,9.31818516]
[1693365476645,6.09897517,1718.2,1718.1,7.8846034]
[1693365477453,3.11359524,1718.3,1718.1,7.8846034]
[1693365477454,9.21257041,1718.3,1718.1,7.8846034]
[1693365478754,9.21257041,1718.3,1718.1,9.31818516]
[1693365479350,9.21257041,1718.3,1718.2,2.26993648]
[1693365479951,9.21257041,1718.3,1718.2,2.27483271]
[1693365480351,9.21257041,1718.3,1718.2,0.00489623]
[1693365484360,9.98755236,1718.3,1718.2,0.00489623]
[1693365487558,15.22955236,1718.3,1718.2,0.00489623]
[1693365487963,15.22955236,1718.3,1718.0,3.21653032]
[1693365488162,5.33320334,1718.1,1718.0,3.21653032]
[1693365488558,7.76000334,1718.1,1718.0,3.21653032]
[1693365488958,7.76000334,1718.1,1718.0,4.65502265]
[1693365489759,2.4268,1718.1,1718.0,4.65502265]
[1693365492165,7.75874577,1718.1,1718.0,4.65502265]
[1693365495075,2.4268,1718.1,1718.0,4.65502265]
[1693365495573,8.52188953,1718.1,1718.0,4.65502265]
[1693365496973,8.52188953,1718.1,1718.0,0.01364089]
[1693365497173,13.76388953,1718.1,1718.0,0.01364089]
[1693365497367,20.63784665,1718.1,1718.0,0.01364089]
[1693365497669,14.54275712,1718.1,1717.6,6.08174054]
[1693365497871,5.33238285,1717.9,1717.7,5.242]
[1693365498068,5.33238285,1717.9,1717.7,5.24674443]
[1693365498271,7.74538285,1717.9,1717.7,5.24674443]
[1693365498575,7.74538285,1717.9,1717.7,7.89584443]
[1693365498772,7.74538285,1717.9,1717.7,9.32942619]
[1693365499075,7.74538285,1717.9,1717.7,5.24674443]
[1693365499374,5.33238285,1717.8,1717.7,0.00474443]
[1693365499571,12.98738285,1717.9,1717.7,0.00474443]
[1693365499975,12.98738285,1717.9,1717.6,8.4498]
[1693365500173,5.33238285,1717.8,1717.6,5.242]
[1693365500573,5.33238285,1717.8,1717.6,5.25073235]
[1693365501174,5.33238285,1717.8,1717.7,0.0047432]
[1693365501970,5.33238285,1717.8,1717.6,5.25073235]
[1693365502171,12.98738285,1717.9,1717.6,5.25073235]
[1693365502983,12.98738285,1717.9,1717.7,0.0047432]
[1693365503982,12.98738285,1717.9,1717.6,5.25073235]
[1693365504978,12.98738285,1717.9,1717.7,0.0047432]
[1693365506172,12.98738285,1717.9,1717.6,5.25073235]
[1693365506977,12.98738285,1717.9,1717.7,0.0047432]
[1693365508179,12.98738285,1717.9,1717.6,5.25073235]
[1693365508980,12.98738285,1717.9,1717.7,0.0047432]
[1693365509974,12.98738285,1717.9,1717.6,5.25073235]
[1693365510277,13.44500621,1717.9,1717.6,5.25073235]
[1693365510480,13.44500621,1717.9,1717.6,7.52066883]
[1693365511081,13.44500621,1717.9,1717.7,0.0047432]
[1693365512082,13.44500621,1717.9,1717.6,7.52066883]
[1693365512983,13.44500621,1717.9,1717.7,0.0047432]
[1693365513981,13.44500621,1717.9,1717.6,7.52066883]
[1693365514485,8.11262336,1717.9,1717.6,7.52066883]
[1693365515074,8.11262336,1717.9,1717.7,0.0047432]
[1693365515374,8.11262336,1717.9,1717.7,1.43832496]
[1693365521086,8.11262336,1717.9,1717.7,0.0047432]
[1693365522085,8.11262336,1717.9,1717.6,5.25073235]
[1693365522981,8.11262336,1717.9,1717.7,0.00474443]
[1693365524086,8.11262336,1717.9,1717.6,5.25073235]
[1693365525091,8.11262336,1717.9,1717.7,0.00473828]
[1693365525289,13.44500621,1717.9,1717.7,0.00473828]
[1693365526088,13.44500621,1717.9,1717.6,5.25073235]
[1693365527084,13.44500621,1717.9,1717.7,0.00473828]
[1693365527985,13.44500621,1717.9,1717.6,5.25073235]
[1693365529089,13.44500621,1717.9,1717.7,0.00473828]
[1693365529993,13.44500621,1717.9,1717.6,5.25073235]
[1693365530993,13.44500621,1717.9,1717.7,0.00474074]
[1693365531994,13.44500621,1717.9,1717.6,5.25073235]
[1693365533091,13.44500621,1717.9,1717.7,0.00474074]
[1693365533988,13.44500621,1717.9,1717.6,5.25073235]
[1693365534590,5.33238285,1717.8,1717.6,5.25073235]
[1693365534985,5.33238285,1717.8,1717.7,0.00474074]
[1693365536193,5.33238285,1717.8,1717.6,5.25073235]
[1693365536989,5.33238285,1717.8,1717.7,0.00474074]
[1693365538002,5.33238285,1717.8,1717.6,5.25073235]
[1693365538996,5.33238285,1717.8,1717.7,0.00474074]
[1693365540097,5.33238285,1717.8,1717.6,5.25073235]
[1693365540293,5.33238285,1717.7,1717.6,5.25073235]
[1693365540897,7.98088285,1717.7,1717.6,5.25073235]
[1693365541091,13.22288285,1717.7,1717.6,0.01348026]
[1693365541900,7.98088285,1717.7,1717.6,0.01348026]
[1693365542794,5.33238285,1717.7,1717.6,0.01348026]
[1693365542999,5.242,1717.7,1717.6,0.01348026]
[1693365543203,10.4248,1717.7,1717.4,2.5216]
[1693365543498,5.33265725,1717.5,1717.4,2.5216]
[1693365544002,5.33265725,1717.5,1717.4,2.52618333]
[1693365544801,2.5285,1717.5,1717.4,2.52618333]
[1693365547397,13.10315725,1717.5,1717.4,0.00458333]
[1693365547903,10.3182,1717.5,1717.4,0.00458333]
[1693365548104,10.3182,1717.5,1717.2,10.8789]
[1693365548306,5.32926736,1717.4,1717.2,10.8789]
[1693365549101,5.32926736,1717.4,1717.3,0.00458804]
[1693365549508,21.74161919,1717.5,1717.3,0.00458804]
[1693365549708,15.64746736,1717.5,1717.3,0.00458804]
[1693365551905,5.242,1717.4,1717.3,0.00458804]
[1693365563515,8.4498,1717.4,1717.3,0.00458804]
[1693365565918,0.46999888,1717.5,1717.3,6.6801698]
[1693365566217,3.2078,1717.6,1717.4,5.242]
[1693365566416,5.79263297,1717.7,1717.4,7.7878]
[1693365566417,11.49963297,1717.7,1717.4,7.7878]
[1693365566922,5.242,1717.6,1717.4,2.5458]
[1693365567116,5.242,1717.6,1717.5,0.0045737]
[1693365567527,6.4067,1717.6,1717.2,0.00873413]
[1693365567712,6.4067,1717.6,1716.7,0.3948]
[1693365567713,1.165,1717.2,1716.7,0.3948]
[1693365567912,8.4498,1716.8,1716.7,0.3948]
[1693365568121,5.242,1716.8,1716.6,2.26993648]
[1693365568423,2.5969,1717.1,1716.7,8.4498]
[1693365568623,2.5969,1717.1,1716.8,5.242]
[1693365568823,0.3948,1717.0,1716.9,1.43358176]
[1693365569125,2.5969,1717.1,1716.9,1.43358176]
[1693365569315,0.3948,1717.0,1716.8,7.51193648]
[1693365569625,0.3948,1717.0,1716.8,8.94551824]
[1693365572026,0.3948,1717.0,1716.8,3.70351824]
[1693365573725,5.6368,1717.0,1716.8,3.70351824]
[1693365574930,5.6368,1717.0,1716.8,2.26993648]
[1693365575921,5.6368,1717.0,1716.8,3.70351824]
[1693365576123,5.6368,1717.0,1716.9,0.00412401]
[1693365578020,5.6368,1717.0,1716.7,3.21653668]
[1693365578827,5.6368,1717.0,1716.8,1.43358176]
[1693365579127,5.6368,1717.0,1716.8,1.43771295]
[1693365579631,5.6368,1717.0,1716.8,0.00413119]
[1693365582024,5.242,1716.9,1716.8,0.00413119]
[1693365591836,5.70894746,1716.9,1716.8,0.00413119]
[1693365592539,8.13254746,1716.9,1716.8,0.00413119]
[1693365598136,13.37454746,1716.9,1716.8,0.00413119]
[1693365598535,0.3948,1716.8,1716.7,3.21653668]
[1693365598740,5.94957067,1716.8,1716.7,3.21653668]
[1693365599048,5.94957067,1716.8,1716.7,3.22047955]
[1693365601246,5.94957067,1716.8,1716.7,0.01267955]
[1693365601446,8.35497067,1716.8,1716.7,0.01267955]
[1693365602848,8.35497067,1716.8,1716.5,3.2078]
[1693365603150,5.242,1716.6,1716.5,3.2078]
[1693365603352,5.6368,1716.6,1716.5,3.2078]
[1693365604045,5.6368,1716.6,1716.5,3.21160558]
[1693365604845,5.6368,1716.6,1716.5,4.64518734]
[1693365605550,5.6368,1716.6,1716.5,3.21160558]
[1693365606248,5.6368,1716.6,1716.5,0.00380558]
[1693365606450,5.6368,1716.6,1716.3,5.2181]
[1693365606748,5.6368,1716.6,1716.3,2.6357]
[1693365606749,5.242,1716.4,1716.3,2.6357]
[1693365606947,5.242,1716.4,1716.3,4.06928176]
[1693365607148,5.6368,1716.4,1716.3,4.06928176]
[1693365607349,5.6368,1716.4,1716.3,2.6357]
[1693365607548,5.6368,1716.4,1716.3,4.06928176]
[1693365608152,5.6368,1716.4,1716.3,2.6357]
[1693365608951,5.242,1716.4,1716.3,2.6357]
[1693365609255,5.242,1716.7,1716.3,12.51908176]
[1693365609553,5.242,1716.7,1716.5,3.2078]
[1693365609750,5.242,1716.7,1716.6,1.43358176]
[1693365614151,5.242,1716.7,1716.6,1.43723379]
[1693365615160,5.71884804,1716.7,1716.6,1.43723379]
[1693365616563,6.11364804,1716.7,1716.6,0.00365203]
[1693365617565,6.11364804,1716.7,1716.6,1.43723379]
[1693365618263,5.71884804,1716.7,1716.6,3.70717027]
[1693365621269,0.47684804,1716.7,1716.6,3.70717027]
[1693365621467,5.242,1716.8,1716.6,3.70717027]
[1693365621863,12.66484037,1716.9,1716.6,8.94917027]
[1693365622667,12.66484037,1716.9,1716.6,1.43723379]
[1693365622668,5.242,1716.7,1716.6,1.43723379]
[1693365623271,7.6822,1716.7,1716.6,0.00365203]
[1693365624063,7.6822,1716.7,1716.6,1.43723379]
[1693365624264,7.6822,1716.7,1716.6,0.00365203]
[1693365626368,12.23789291,1716.7,1716.6,0.00365203]
[1693365630569,12.99692963,1716.7,1716.6,0.00365203]
[1693365631574,16.20472963,1716.7,1716.5,0.00873794]
[1693365631763,10.19721817,1716.6,1716.5,0.00873794]
[1693365632363,12.60741817,1716.6,1716.5,0.00873794]
[1693365637578,12.60741817,1716.6,1716.3,5.6802]
[1693365637772,2.6151,1716.5,1716.3,5.6802]
[1693365637978,2.6151,1716.5,1716.3,7.11378176]
[1693365639476,7.17551817,1716.5,1716.3,7.11378176]
[1693365640073,0.3948,1716.4,1716.3,5.6802]
[1693365640378,10.19721817,1716.4,1716.3,5.6802]
[1693365640578,12.63271817,1716.4,1716.3,5.6802]
[1693365642073,12.23791817,1716.4,1716.3,7.11378176]
[1693365642273,4.56041817,1716.4,1716.3,7.11378176]
[1693365643476,4.95521817,1716.4,1716.3,7.11378176]
[1693365644182,4.56041817,1716.4,1716.3,7.11378176]
[1693365645683,4.95521817,1716.4,1716.3,7.11378176]
[1693365645879,10.19721817,1716.4,1716.3,2.4724]
[1693365646180,12.77861817,1716.4,1716.1,3.68516491]
[1693365646378,12.77861817,1716.4,1716.1,6.30366491]
[1693365646574,15.42781817,1716.4,1716.1,6.30366491]
[1693365647379,5.242,1716.2,1716.1,0.47736491]
[1693365647581,10.19721817,1716.2,1715.9,8.4556]
[1693365647784,12.77861817,1716.2,1716.0,1.43358176]
[1693365648482,8.2182,1716.2,1716.0,1.43358176]
[1693365649584,8.2182,1716.2,1715.9,10.72553648]
[1693365649885,10.7947,1716.2,1716.0,1.43358176]
[1693365651579,10.7947,1716.2,1715.9,10.72553648]
[1693365651785,10.7947,1716.2,1715.9,8.4556]
[1693365652289,10.7947,1716.2,1715.9,5.8263]
[1693365652481,5.242,1716.0,1715.9,5.8263]
[1693365652682,5.6368,1716.0,1715.9,5.8263]
[1693365653585,5.242,1716.0,1715.9,7.25988176]
[1693365653888,5.6368,1716.0,1715.9,7.25988176]
[1693365654678,5.242,1716.0,1715.9,7.25988176]
[1693365654884,5.6368,1716.0,1715.9,2.6185]
[1693365655292,5.6368,1716.0,1715.6,0.2053]
[1693365655293,5.242,1715.8,1715.6,0.2053]
[1693365655486,5.6368,1715.7,1715.6,0.2053]
[1693365656386,5.6368,1715.7,1715.2,0.47310899]
[1693365656691,5.242,1715.4,1715.3,3.2078]
[1693365656881,2.3911,1715.6,1715.3,9.88338176]
[1693365657282,7.6331,1715.6,1715.5,3.2078]
[1693365657483,7.6331,1715.6,1715.5,4.64138176]
[1693365657889,8.0279,1715.6,1715.5,3.2078]
[1693365659087,7.6331,1715.6,1715.5,4.64138176]
[1693365659283,5.242,1715.6,1715.5,6.91131824]
[1693365659500,5.242,1715.6,1715.5,3.2078]
[1693365659685,5.242,1715.6,1715.5,4.64138176]
[1693365660191,2.5043,1715.9,1715.5,9.88338176]
[1693365660192,7.7463,1715.9,1715.5,9.88338176]
[1693365660494,5.242,1715.9,1715.7,3.2078]
[1693365660690,5.70537466,1716.0,1715.8,1.43358176]
[1693365660894,5.6368,1716.0,1715.8,3.70351824]
[1693365661591,18.26741003,1716.2,1715.8,8.94551824]
[1693365661592,22.62737607,1716.2,1715.8,8.94551824]
[1693365661793,19.41957607,1716.2,1715.9,3.2078]
[1693365661993,0.45557607,1716.2,1716.1,3.2078]
[1693365662196,7.81584075,1716.3,1716.1,3.2078]
[1693365662500,7.81584075,1716.3,1716.2,3.70351824]
[1693365662691,4.66794075,1716.3,1716.2,3.70351824]
[1693365663496,5.06274075,1716.3,1716.2,3.70351824]
[1693365663797,4.66794075,1716.3,1716.2,3.70351824]
[1693365664693,5.242,1716.4,1716.2,3.70351824]
[1693365666301,5.6368,1716.4,1716.2,3.70351824]
[1693365669101,5.242,1716.4,1716.2,3.70351824]
[1693365670306,5.242,1716.4,1716.3,3.2078]
[1693365671397,5.6368,1716.4,1716.3,3.2078]
[1693365672498,0.3948,1716.4,1716.3,3.2078]
[1693365674002,8.106789,1716.5,1716.3,3.2078]
[1693365674608,0.3948,1716.4,1716.3,3.2078]
[1693365676013,8.106789,1716.5,1716.3,3.2078]
[1693365676313,8.501589,1716.5,1716.3,3.2078]
[1693365677108,5.242,1716.4,1716.1,8.4498]
[1693365677406,5.242,1716.2,1716.1,3.2078]
[1693365677809,8.0629,1716.2,1716.1,3.2078]
[1693365678810,8.0629,1716.2,1715.9,8.4498]
[1693365679012,8.0629,1716.2,1716.0,1.43358176]
[1693365680315,8.0629,1716.2,1716.1,3.2078]
[1693365680500,7.6681,1716.2,1716.1,3.2078]
[1693365680703,8.0629,1716.2,1716.1,3.2078]
[1693365681914,2.8209,1716.2,1716.1,3.2078]
[1693365683608,2.4261,1716.2,1716.1,3.2078]
[1693365684110,2.8209,1716.2,1716.1,3.2078]
[1693365684309,2.4261,1716.2,1716.1,3.2078]
[1693365684714,2.8209,1716.2,1716.1,3.2078]
[1693365686615,8.0629,1716.2,1716.1,3.2078]
[1693365689820,8.0629,1716.2,1716.1,4.64138176]
[1693365690122,8.0629,1716.2,1715.8,2.61]
[1693365690315,5.242,1716.0,1715.8,3.2078]
[1693365690719,5.6368,1716.0,1715.8,4.64138176]
[1693365691733,5.242,1715.9,1715.6,2.4106]
[1693365692021,5.6368,1715.8,1715.6,2.4106]
[1693365692221,7.7276,1715.9,1715.6,9.08618176]
[1693365692724,0.3948,1715.8,1715.6,9.08618176]
[1693365693113,7.7276,1715.9,1715.6,9.08618176]
[1693365693521,0.3948,1715.8,1715.6,9.08618176]
[1693365694527,7.7276,1715.9,1715.6,9.08618176]
[1693365695025,7.7276,1715.9,1715.6,11.35611824]
[1693365698918,2.4856,1715.9,1715.7,5.242]
[1693365699123,0.3948,1715.8,1715.7,5.242]
[1693365699324,2.4856,1715.9,1715.7,5.242]
[1693365699524,2.4856,1715.9,1715.8,1.43358176]
[1693365700925,2.8804,1715.9,1715.8,1.43358176]
[1693365702035,2.4856,1715.9,1715.8,1.43358176]
[1693365702328,2.8804,1715.9,1715.7,7.51193648]
[1693365702528,2.8804,1715.9,1715.8,1.43358176]
[1693365703128,2.4856,1715.9,1715.8,1.43358176]
[1693365704425,2.8804,1715.9,1715.8,1.43358176]
[1693365704632,2.8804,1715.9,1715.7,7.5206785]
[1693365704831,2.8804,1715.9,1715.7,8.95426026]
[1693365707030,2.4856,1715.9,1715.7,8.95426026]
[1693365707734,2.8804,1715.9,1715.7,8.95426026]
[1693365708928,8.1224,1715.9,1715.7,0.00874202]
[1693365710425,3.2078,1715.8,1715.7,0.00874202]